bitfinex-derivatives/quotes_ETHF0:USTF0_20260118
["timestamp","ask_amount","ask_price","bid_price","bid_amount"]
[1768731098185,1.04798933,3321.7,3320.6,0.00228852]
[1768731098392,1.04798933,3321.6,3320.6,0.00228852]
[1768731098587,0.13290169,3321.9,3320.6,0.00228852]
[1768731098788,1.048102,3321.8,3320.6,0.00228852]
[1768731098991,1.048102,3321.7,3320.6,0.00228852]
[1768731099205,1.048102,3321.6,3320.6,0.00228852]
[1768731099406,0.13290169,3321.9,3320.6,0.00228852]
[1768731099598,1.04824739,3321.8,3320.6,0.00228852]
[1768731099894,1.04824739,3321.7,3320.6,0.00228852]
[1768731100095,1.04824739,3321.6,3320.6,0.00228852]
[1768731100399,0.13290169,3321.9,3320.6,0.00228852]
[1768731100592,1.18114172,3321.8,3320.6,0.00228852]
[1768731100794,1.04824003,3321.7,3320.6,0.00228852]
[1768731101092,1.04824003,3321.6,3320.6,0.00228852]
[1768731101292,0.13290169,3321.8,3320.6,0.00228852]
[1768731101588,1.04823299,3321.7,3320.6,0.00228852]
[1768731101793,1.04823299,3321.6,3320.6,0.00228852]
[1768731101993,0.13290169,3321.8,3320.6,0.00228852]
[1768731102204,1.04823299,3321.7,3320.6,0.00228852]
[1768731102502,1.04823299,3321.6,3320.6,0.00228852]
[1768731102704,0.13290169,3321.8,3320.6,0.00228852]
[1768731103004,1.04822631,3321.7,3320.6,0.00228852]
[1768731103201,1.04822631,3321.6,3320.6,0.00228852]
[1768731103401,0.13290169,3321.8,3320.6,0.00228852]
[1768731103605,1.18112229,3321.7,3320.6,0.00228852]
[1768731103794,1.0482206,3321.6,3320.6,0.00228852]
[1768731103993,0.13290169,3321.7,3320.6,0.00228852]
[1768731104196,1.04822061,3321.6,3320.6,0.00228852]
[1768731104396,0.13290169,3321.7,3320.6,0.00228852]
[1768731104591,1.04821524,3321.6,3320.6,0.00228852]
[1768731104794,0.13290169,3321.7,3320.6,0.00228852]
[1768731104998,1.04821505,3321.6,3320.6,0.00228852]
[1768731105203,0.13290169,3321.7,3320.6,0.00228852]
[1768731105409,1.04820807,3321.6,3320.6,0.00228852]
[1768731105711,0.13290169,3321.7,3320.6,0.00228852]
[1768731105913,1.04820807,3321.6,3320.6,0.00228852]
[1768731106101,0.13290169,3321.7,3320.6,0.00228852]
[1768731106302,1.04820845,3321.6,3320.6,0.00228852]
[1768731106503,0.13290169,3321.7,3320.6,0.00228852]
[1768731106702,1.04820414,3321.6,3320.6,0.00228852]
[1768731106900,0.13290169,3321.7,3320.6,0.00228852]
[1768731107102,1.04820414,3321.6,3320.6,0.00228852]
[1768731107410,0.13290169,3321.7,3320.6,0.97000066]
[1768731107609,1.04820114,3321.6,3320.6,0.97000066]
[1768731107811,0.13290169,3321.7,3320.6,0.97000066]
[1768731108107,1.04820114,3321.6,3320.6,0.97000066]
[1768731108310,0.13290169,3321.7,3320.6,0.97000066]
[1768731108505,1.04819908,3321.6,3320.6,0.97000066]
[1768731108707,0.13290169,3321.7,3320.6,0.97000066]
[1768731108909,1.04819908,3321.6,3320.6,0.97000066]
[1768731109111,0.13290169,3321.7,3320.6,0.97000066]
[1768731109414,1.04819757,3321.6,3320.6,0.97000066]
[1768731109611,0.13290169,3321.7,3320.6,0.97000066]
[1768731109913,1.04819757,3321.6,3320.6,0.97000066]
[1768731110212,0.13290169,3321.7,3320.6,0.97000066]
[1768731116117,0.13290169,3321.7,3320.6,0.00228852]
[1768731123518,0.13290169,3321.7,3320.7,0.96771214]
[1768731124215,0.13743129,3322.1,3320.9,0.96771214]
[1768731124421,0.13743129,3322.1,3320.6,0.00228852]
[1768731124422,0.00288497,3322.1,3321.5,0.96771214]
[1768731125105,0.13454632,3322.6,3321.7,0.96771214]
[1768731126019,0.13806531,3322.6,3321.7,0.96771214]
[1768731128622,0.13806531,3322.6,3321.6,0.96771214]
[1768731129912,0.13806531,3322.6,3321.4,0.96771214]
[1768731133817,1.10577745,3322.6,3321.2,0.96771214]
[1768731135221,0.13806531,3322.6,3321.2,0.96771214]
[1768731135419,1.10577745,3322.6,3321.2,0.96771214]
[1768731145618,0.13806531,3322.6,3321.2,0.96771214]
[1768731145820,1.10577745,3322.6,3321.2,0.96771214]
[1768731146938,1.10577745,3322.6,3321.1,0.26395789]
[1768731147126,1.10577745,3322.6,3321.3,0.96771214]
[1768731153749,1.10577745,3322.6,3321.3,1.11830214]
[1768731154140,0.97123113,3322.6,3321.3,1.11830214]
[1768731154340,0.00351899,3322.6,3321.3,1.11830214]
[1768731154950,0.00351899,3322.6,3321.5,0.96771214]
[1768731157940,0.00351899,3322.6,3321.4,0.96771214]
[1768731167155,0.00351899,3322.6,3321.3,0.15059]
[1768731167352,0.00351899,3322.6,3321.4,0.96771214]
[1768731167652,0.12971453,3323.9,3322.5,0.96771214]
[1768731167854,2.0120505,3323.8,3322.5,0.96771214]
[1768731168148,0.96771214,3323.6,3322.3,0.96771214]
[1768731168546,0.12971453,3323.9,3322.3,0.96771214]
[1768731168754,0.12971453,3323.8,3322.5,0.96771214]
[1768731169458,0.12971453,3323.8,3322.2,0.25943308]
[1768731170053,0.12971453,3323.8,3322.2,0.15055]
[1768731193569,0.13429529,3323.6,3322.2,0.15055]
[1768731203380,1.03550343,3323.5,3322.2,0.15055]
[1768731203580,0.13429529,3323.6,3322.2,0.15055]
[1768731203771,1.03550343,3323.5,3322.2,0.15055]
[1768731203972,0.13429529,3323.6,3322.2,0.15055]
[1768731204175,1.03550343,3323.5,3322.2,0.15055]
[1768731204370,0.13429529,3323.6,3322.2,0.15055]
[1768731204573,1.03554904,3323.5,3322.2,0.15055]
[1768731204770,0.13429529,3323.6,3322.2,0.15055]
[1768731204973,1.03554904,3323.5,3322.2,0.15055]
[1768731205173,0.13429529,3323.6,3322.2,0.15055]
[1768731205467,1.03556206,3323.5,3322.2,0.15055]
[1768731205667,0.13429529,3323.6,3322.2,0.15055]
[1768731205868,1.03560587,3323.5,3322.2,0.15055]
[1768731206074,0.13429529,3323.6,3322.2,0.15055]
[1768731206277,1.03561875,3323.5,3322.2,0.15055]
[1768731206473,0.13429529,3323.6,3322.2,0.15055]
[1768731206672,1.03567285,3323.5,3322.2,0.15055]
[1768731206873,0.13429529,3323.6,3322.2,0.15055]
[1768731207081,1.03567274,3323.5,3322.2,0.15055]
[1768731207385,0.13429529,3323.6,3322.2,0.15055]
[1768731207574,1.03575632,3323.5,3322.2,0.15055]
[1768731207774,0.13429529,3323.6,3322.2,0.15055]
[1768731207974,1.03575609,3323.5,3322.2,0.15055]
[1768731208177,0.13429529,3323.6,3322.2,0.15055]
[1768731208376,1.03576822,3323.5,3322.2,0.15055]
[1768731208578,0.13429529,3323.6,3322.2,0.15055]
[1768731208778,1.03586087,3323.5,3322.2,0.15055]
[1768731208978,0.13429529,3323.6,3322.2,0.15055]
[1768731209174,1.03648502,3323.5,3322.2,0.15055]
[1768731209374,0.13429529,3323.6,3322.2,0.15055]
[1768731209583,1.03662283,3323.5,3322.2,0.15055]
[1768731209783,0.13429529,3323.6,3322.2,0.15055]
[1768731209978,1.03662264,3323.5,3322.2,0.15055]
[1768731210178,0.13429529,3323.6,3322.2,0.15055]
[1768731210380,1.03663076,3323.5,3322.2,0.15055]
[1768731210581,0.13429529,3323.6,3322.2,0.15055]
[1768731210879,1.03663059,3323.5,3322.2,0.15055]
[1768731211083,0.00233564,3323.9,3322.2,0.26001727]
[1768731211282,1.03663812,3323.8,3322.2,1.22674521]
[1768731211482,1.03663812,3323.7,3322.2,1.22674521]
[1768731211685,1.03663812,3323.6,3322.2,1.22674521]
[1768731211881,1.03663812,3323.5,3322.2,1.22674521]
[1768731212181,0.13139181,3323.9,3322.2,1.22674521]
[1768731212383,1.03695307,3323.8,3322.2,1.22674521]
[1768731212582,1.03695307,3323.7,3322.2,1.22674521]
[1768731212783,1.03695307,3323.6,3322.2,1.22674521]
[1768731212975,1.03695307,3323.5,3322.2,1.22674521]
[1768731213176,0.13139181,3323.9,3322.2,1.22674521]
[1768731213377,0.12905617,3323.7,3322.2,1.22674521]
[1768731213578,1.03692992,3323.6,3322.2,1.22674521]
[1768731214378,1.03692992,3323.6,3322.2,0.26001727]
[1768731229302,1.17587218,3323.6,3322.7,0.96657867]
[1768731229500,1.03692992,3323.5,3322.7,0.96657867]
[1768731229715,0.13894226,3323.6,3322.7,0.96657867]
[1768731229915,1.03690311,3323.5,3322.2,0.15055]
[1768731230213,0.13894226,3323.6,3322.2,0.15055]
[1768731230513,1.03690769,3323.5,3322.7,0.96657867]
[1768731230716,0.13894226,3323.6,3322.7,0.96657867]
[1768731230916,1.03690797,3323.5,3322.7,0.96657867]
[1768731231112,0.13894226,3323.6,3322.7,0.96657867]
[1768731231316,1.17585478,3323.5,3322.7,0.96657867]
[1768731231618,0.13894226,3323.5,3322.5,0.96657867]
[1768731232620,0.13894226,3323.5,3322.3,0.15055]
[1768731232917,0.13894226,3323.5,3322.6,0.96657867]
[1768731236819,0.13894226,3323.5,3322.3,0.15055]
[1768731237023,0.13894226,3323.5,3322.6,0.96657867]
[1768731238826,0.13894226,3323.5,3322.3,0.15055]
[1768731239027,0.13894226,3323.5,3322.6,0.96657867]
[1768731250434,0.00233564,3323.9,3322.6,0.96657867]
[1768731250628,1.03757656,3323.8,3322.6,0.96657867]
[1768731250828,1.03757656,3323.7,3322.6,0.96657867]
[1768731251025,1.03757656,3323.6,3322.6,0.96657867]
[1768731251329,1.03757656,3323.5,3322.6,0.96657867]
[1768731251624,0.13456623,3323.9,3322.6,0.96657867]
[1768731251824,1.03757667,3323.8,3322.6,0.96657867]
[1768731252032,1.03757667,3323.7,3322.6,0.96657867]
[1768731252331,1.03757667,3323.6,3322.6,0.96657867]
[1768731252631,1.03757667,3323.5,3322.6,0.96657867]
[1768731252833,0.13456623,3323.9,3322.6,0.96657867]
[1768731253136,1.03757686,3323.8,3322.6,0.96657867]
[1768731253331,1.03757686,3323.7,3322.6,0.96657867]
[1768731253532,1.03757686,3323.6,3322.6,0.96657867]
[1768731253733,1.03757686,3323.5,3322.6,0.96657867]
[1768731254031,0.13456623,3323.9,3322.6,0.96657867]
[1768731254232,1.03757627,3323.8,3322.6,0.96657867]
[1768731254431,1.03757627,3323.7,3322.6,0.96657867]
[1768731254633,1.03757627,3323.6,3322.6,0.96657867]
[1768731254825,1.03757627,3323.5,3322.6,0.96657867]
[1768731255024,0.13456623,3323.9,3322.6,0.96657867]
[1768731255227,1.03757573,3323.8,3322.6,0.96657867]
[1768731255433,1.03757573,3323.7,3322.6,0.96657867]
[1768731255729,1.03757573,3323.6,3322.6,0.96657867]
[1768731255930,1.03757573,3323.5,3322.6,0.96657867]
[1768731256136,0.13456623,3323.9,3322.6,0.96657867]
[1768731256434,1.03757565,3323.8,3322.6,0.96657867]
[1768731256627,1.03757565,3323.7,3322.6,0.96657867]
[1768731256825,1.03757565,3323.6,3322.6,0.96657867]
[1768731257026,1.03757565,3323.5,3322.6,0.96657867]
[1768731257228,0.13456623,3323.9,3322.6,0.96657867]
[1768731257524,1.0375746,3323.8,3322.6,0.96657867]
[1768731257726,1.0375746,3323.7,3322.6,0.96657867]
[1768731257924,1.0375746,3323.6,3322.6,0.96657867]
[1768731258130,1.0375746,3323.5,3322.3,0.15055]
[1768731258334,0.13456623,3323.9,3322.6,0.96657867]
[1768731258533,1.03757447,3323.8,3322.6,0.96657867]
[1768731258728,1.03757447,3323.7,3322.6,0.96657867]
[1768731258935,0.13456623,3323.9,3322.6,0.96657867]
[1768731258936,1.03757447,3323.6,3322.6,0.96657867]
[1768731259129,1.03757447,3323.5,3322.6,0.96657867]
[1768731259335,0.13456623,3323.9,3322.6,0.96657867]
[1768731259634,1.03757531,3323.8,3322.6,0.96657867]
[1768731259935,1.03757531,3323.7,3322.6,0.96657867]
[1768731260121,1.03757531,3323.6,3322.6,0.96657867]
[1768731260320,1.03757531,3323.5,3322.6,0.96657867]
[1768731260519,0.13456623,3323.9,3322.6,0.96657867]
[1768731260725,1.03757639,3323.8,3322.6,0.96657867]
[1768731260929,1.03757639,3323.7,3322.6,0.96657867]
[1768731261132,1.03757639,3323.6,3322.6,0.96657867]
[1768731261328,1.03757639,3323.5,3322.6,0.96657867]
[1768731261533,0.13456623,3323.9,3322.6,0.96657867]
[1768731261734,1.03757648,3323.8,3322.6,0.96657867]
[1768731262031,1.03757648,3323.7,3322.6,0.96657867]
[1768731262232,1.03757648,3323.6,3322.6,0.96657867]
[1768731262435,1.03757648,3323.5,3322.6,0.96657867]
[1768731262634,0.13456623,3323.9,3322.6,0.96657867]
[1768731262837,1.0375772,3323.8,3322.6,0.96657867]
[1768731263031,1.0375772,3323.7,3322.6,0.96657867]
[1768731263230,1.0375772,3323.6,3322.6,0.96657867]
[1768731263441,1.0375772,3323.5,3322.6,0.96657867]
[1768731263733,0.13456623,3323.9,3322.6,0.96657867]
[1768731263937,1.03757731,3323.8,3322.6,0.96657867]
[1768731264136,1.03757731,3323.7,3322.6,0.96657867]
[1768731264336,1.03757731,3323.6,3322.6,0.96657867]
[1768731264535,1.03757731,3323.5,3322.6,0.96657867]
[1768731264735,0.13456623,3323.9,3322.6,0.96657867]
[1768731264938,1.03757787,3323.8,3322.6,0.96657867]
[1768731265143,1.03757787,3323.7,3322.6,0.96657867]
[1768731265454,1.03757787,3323.6,3322.6,0.96657867]
[1768731265743,1.03757787,3323.5,3322.6,0.96657867]
[1768731265945,0.13456623,3323.9,3322.6,0.96657867]
[1768731266242,1.03757727,3323.8,3322.6,0.96657867]
[1768731266442,1.03757727,3323.7,3322.6,0.96657867]
[1768731266636,1.03757727,3323.6,3322.6,0.96657867]
[1768731266837,1.03757727,3323.5,3322.6,0.96657867]
[1768731267040,0.13456623,3323.9,3322.6,0.96657867]
[1768731267240,1.03757905,3323.8,3322.6,0.96657867]
[1768731267441,1.03757905,3323.7,3322.6,0.96657867]
[1768731267634,1.03757905,3323.6,3322.6,0.96657867]
[1768731267834,1.03757905,3323.5,3322.6,0.96657867]
[1768731268134,0.13456623,3323.9,3322.6,0.96657867]
[1768731268335,1.03757985,3323.8,3322.6,0.96657867]
[1768731268541,1.03757985,3323.7,3322.6,0.96657867]
[1768731268735,1.03757985,3323.6,3322.6,0.96657867]
[1768731268937,1.03757985,3323.5,3322.6,0.96657867]
[1768731269132,0.13456623,3323.9,3322.6,0.96657867]
[1768731269337,1.03784063,3323.8,3322.6,0.96657867]
[1768731269537,0.13456623,3323.9,3322.6,0.96657867]
[1768731269538,1.03784063,3323.7,3322.6,0.96657867]
[1768731269745,1.03784063,3323.6,3322.6,0.96657867]
[1768731269948,1.03784063,3323.5,3322.6,0.96657867]
[1768731270246,0.13456623,3323.9,3322.6,0.96657867]
[1768731270448,1.17720733,3323.8,3322.6,0.96657867]
[1768731270742,1.03784018,3323.7,3322.6,0.96657867]
[1768731270948,1.03784018,3323.6,3322.6,0.96657867]
[1768731271133,1.03784018,3323.5,3322.6,0.96657867]
[1768731271331,0.13936715,3323.8,3322.6,0.96657867]
[1768731271547,1.03784075,3323.7,3322.6,0.96657867]
[1768731271733,1.03784075,3323.6,3322.6,0.96657867]
[1768731271936,1.03784075,3323.5,3322.6,0.96657867]
[1768731272138,0.13936715,3323.8,3322.6,0.96657867]
[1768731272338,1.03783991,3323.7,3322.6,0.96657867]
[1768731272640,1.03783991,3323.6,3322.6,0.96657867]
[1768731272838,1.03783991,3323.5,3322.6,0.96657867]
[1768731273043,0.13936715,3323.8,3322.6,0.96657867]
[1768731273246,1.03783692,3323.7,3322.6,0.96657867]
[1768731273439,1.03783692,3323.6,3322.6,0.96657867]
[1768731273638,1.03783692,3323.5,3322.6,0.96657867]
[1768731273938,0.13936715,3323.8,3322.6,0.96657867]
[1768731274139,1.03783443,3323.7,3322.6,0.96657867]
[1768731274339,1.03783443,3323.6,3322.6,0.96657867]
[1768731274539,1.03783443,3323.5,3322.6,0.96657867]
[1768731274837,0.13936715,3323.8,3322.6,0.96657867]
[1768731275048,1.0378313,3323.7,3322.6,0.96657867]
[1768731275249,0.13936715,3323.8,3322.6,0.96657867]
[1768731275250,1.0378313,3323.6,3322.6,0.96657867]
[1768731275438,0.13936715,3323.8,3322.6,0.96657867]
[1768731275640,1.03782926,3323.7,3322.6,0.96657867]
[1768731275841,1.03782926,3323.6,3322.6,0.96657867]
[1768731276040,1.03782926,3323.5,3322.6,0.96657867]
[1768731276246,0.13936715,3323.8,3322.6,0.96657867]
[1768731276437,1.03782803,3323.7,3322.6,0.96657867]
[1768731276641,1.03782803,3323.6,3322.6,0.96657867]
[1768731276841,1.03782803,3323.5,3322.6,0.96657867]
[1768731277141,0.13936715,3323.8,3322.6,0.96657867]
[1768731277451,0.14064878,3323.6,3322.3,1.11712867]
[1768731277648,1.03782818,3323.5,3322.3,1.11712867]
[1768731279649,1.03782818,3323.5,3322.3,0.15055]
[1768731279849,1.03782818,3323.5,3322.4,0.96657867]
[1768731282551,1.03782818,3323.5,3322.3,0.15055]
[1768731282752,1.03782818,3323.5,3322.4,0.96657867]
[1768731291361,1.03782818,3323.5,3322.3,0.15055]
[1768731292149,1.17179142,3323.5,3322.3,0.15055]
[1768731292355,1.03738828,3323.4,3322.3,0.15055]
[1768731292549,0.13396324,3323.5,3321.7,0.25965451]
[1768731292855,0.13396324,3323.3,3321.7,0.15057]
[1768731293163,0.13396324,3323.1,3321.7,0.15057]
[1768731293363,1.17132551,3323.0,3321.7,0.15057]
[1768731293564,0.13396324,3323.0,3321.7,0.15057]
[1768731294363,0.13396324,3322.9,3321.7,0.15057]
[1768731294759,0.13396324,3322.7,3321.7,0.15057]
[1768731305277,0.13396324,3323.3,3321.7,0.15057]
[1768731305478,1.03650678,3323.2,3321.7,0.15057]
[1768731305674,1.03650678,3323.1,3321.7,0.15057]
[1768731305871,1.03650678,3323.0,3321.7,0.15057]
[1768731306071,0.13396324,3323.3,3321.7,0.15057]
[1768731306270,1.17043996,3323.2,3321.7,0.15057]
[1768731306470,1.03647672,3323.1,3321.7,0.15057]
[1768731306676,1.03647672,3323.0,3321.7,0.15057]
[1768731306871,0.13396324,3323.2,3321.7,0.15057]
[1768731307075,1.03646367,3323.1,3321.7,0.15057]
[1768731307373,1.03646367,3323.0,3321.7,0.15057]
[1768731307566,0.13396324,3323.2,3321.7,0.15057]
[1768731307770,1.03643353,3323.1,3321.7,0.15057]
[1768731307967,1.03643353,3323.0,3321.7,0.15057]
[1768731308172,0.13396324,3323.2,3321.7,0.15057]
[1768731308377,1.03642499,3323.1,3321.7,0.15057]
[1768731308580,1.03642499,3323.0,3321.7,0.15057]
[1768731308773,0.13396324,3323.2,3321.7,0.15057]
[1768731308974,1.17038821,3323.1,3321.7,0.15057]
[1768731309176,1.03642497,3323.0,3321.7,0.15057]
[1768731309374,0.13396324,3323.1,3321.7,0.15057]
[1768731309574,1.03643393,3323.0,3321.7,0.15057]
[1768731309770,0.13396324,3323.1,3321.7,0.15057]
[1768731309974,1.03643394,3323.0,3321.7,0.15057]
[1768731310183,0.13396324,3323.1,3321.7,0.15057]
[1768731310383,1.03644326,3323.0,3321.7,0.15057]
[1768731310583,0.13396324,3323.1,3321.7,0.15057]
[1768731310784,1.03646224,3323.0,3321.7,0.15057]
[1768731310984,0.13396324,3323.1,3321.7,0.15057]
[1768731311186,1.03644206,3323.0,3321.7,0.15057]
[1768731311387,0.13396324,3323.1,3321.7,0.15057]
[1768731311684,1.03640694,3323.0,3321.7,0.15057]
[1768731311984,0.13396324,3323.1,3321.7,0.15057]
[1768731312184,1.03628632,3323.0,3321.7,0.15057]
[1768731312385,0.13396324,3323.1,3321.7,0.15057]
[1768731312584,1.03635404,3323.0,3321.7,0.15057]
[1768731312785,0.13396324,3323.1,3321.7,0.15057]
[1768731312985,1.03635075,3323.0,3321.7,0.15057]
[1768731313187,0.13396324,3323.1,3321.7,0.15057]
[1768731313387,1.03637695,3323.0,3321.7,0.15057]
[1768731313588,0.13396324,3323.1,3321.7,0.15057]
[1768731313785,1.0362781,3323.0,3321.7,0.15057]
[1768731313980,0.13396324,3323.1,3321.7,0.15057]
[1768731314180,1.0362788,3323.0,3321.7,0.15057]
[1768731314380,0.13396324,3323.1,3321.7,0.15057]
[1768731314582,1.03636638,3323.0,3321.7,0.15057]
[1768731314883,0.13396324,3323.1,3321.7,0.15057]
[1768731315191,1.03635924,3323.0,3321.7,0.15057]
[1768731315377,1.03635924,3322.9,3321.7,0.15057]
[1768731315582,0.13396324,3323.1,3321.7,0.15057]
[1768731315876,1.17013836,3323.0,3321.7,0.15057]
[1768731316075,1.03617512,3322.9,3321.7,0.15057]
[1768731316275,0.13396324,3323.0,3321.7,0.15057]
[1768731316491,1.03633116,3322.9,3321.7,0.15057]
[1768731316786,0.13396324,3323.0,3321.7,0.15057]
[1768731316989,1.03633503,3322.9,3321.7,0.15057]
[1768731317183,0.13396324,3323.0,3321.7,0.15057]
[1768731317385,1.03637216,3322.9,3321.7,0.15057]
[1768731317586,0.13396324,3323.0,3321.7,0.15057]
[1768731317787,1.03653508,3322.9,3321.7,0.15057]
[1768731317991,0.13396324,3323.0,3321.7,0.15057]
[1768731318189,1.03653383,3322.9,3321.7,0.15057]
[1768731318491,0.13396324,3323.0,3321.7,0.15057]
[1768731318690,1.03677863,3322.9,3321.7,0.15057]
[1768731318892,0.13396324,3323.4,3321.7,0.15057]
[1768731319097,1.17074512,3323.3,3321.7,0.15057]
[1768731319389,1.03678188,3323.2,3321.7,0.15057]
[1768731319792,1.17074512,3323.2,3321.7,0.15057]
[1768731320094,1.03678188,3323.1,3321.7,0.15057]
[1768731322486,1.17708223,3323.1,3321.7,0.15057]
[1768731322685,1.03678188,3323.0,3321.7,0.15057]
[1768731330495,1.17708223,3323.0,3321.7,0.15057]
[1768731330697,1.03678188,3322.9,3321.7,0.15057]
[1768731330899,1.03882413,3322.8,3321.7,0.15057]
[1768731331197,1.03882413,3322.7,3321.7,0.15057]
[1768731331396,1.03882413,3322.6,3321.7,0.15057]
[1768731331697,0.14030035,3323.0,3321.7,0.15057]
[1768731331893,1.03882529,3322.9,3321.7,0.15057]
[1768731332098,1.03882529,3322.8,3321.7,0.15057]
[1768731332298,1.03882529,3322.7,3321.7,0.15057]
[1768731332501,1.03882529,3322.6,3321.7,0.15057]
[1768731332701,0.14030035,3323.0,3321.7,0.15057]
[1768731332900,1.03877721,3322.9,3321.7,0.15057]
[1768731333102,1.03877721,3322.8,3321.7,0.15057]
[1768731333299,1.03877721,3322.7,3321.7,0.15057]
[1768731333500,1.03877721,3322.6,3321.7,0.15057]
[1768731333700,0.14030035,3323.0,3321.7,0.15057]
[1768731333901,1.03877949,3322.9,3321.7,0.15057]
[1768731334101,1.03877949,3322.8,3321.7,0.15057]
[1768731334300,1.03877949,3322.7,3321.7,0.15057]
[1768731334501,1.03877949,3322.6,3321.7,0.15057]
[1768731334711,0.14030035,3323.0,3321.7,0.15057]
[1768731334899,1.17884427,3322.9,3321.7,0.15057]
[1768731335102,1.03854392,3322.8,3321.7,0.15057]
[1768731338710,0.13069957,3322.7,3321.7,0.15057]
[1768731339011,1.03854392,3322.6,3321.7,0.15057]
[1768731341716,0.13069957,3322.5,3321.3,0.70380263]
[1768731341909,0.13069957,3322.5,3321.2,0.96678562]
[1768731346635,0.13069957,3322.5,3321.1,1.98408758]
[1768731353335,0.13069957,3322.5,3321.4,0.96734339]
[1768731362135,1.09984037,3322.8,3321.4,0.96734339]
[1768731362435,1.0390344,3322.7,3321.4,0.96734339]
[1768731362634,1.0390344,3322.6,3321.4,0.96734339]
[1768731362836,1.09984037,3322.8,3321.4,0.96734339]
[1768731363036,1.039034,3322.7,3321.4,0.96734339]
[1768731363240,1.039034,3322.6,3321.4,0.96734339]
[1768731363442,1.09984037,3322.8,3321.4,0.96734339]
[1768731363645,1.03903597,3322.7,3321.4,0.96734339]
[1768731363844,1.03903597,3322.6,3321.4,0.96734339]
[1768731364044,1.09984037,3322.8,3321.4,0.96734339]
[1768731364232,1.03903604,3322.7,3321.4,0.96734339]
[1768731364437,1.03903604,3322.6,3321.4,0.96734339]
[1768731364637,1.09984037,3322.8,3321.4,0.96734339]
[1768731364843,1.03903689,3322.7,3321.4,0.96734339]
[1768731365039,1.03903689,3322.6,3321.4,0.96734339]
[1768731365236,1.09984037,3322.8,3321.6,0.96734339]
[1768731365437,1.0385871,3322.7,3321.6,0.96734339]
[1768731365638,1.0385871,3322.6,3321.6,0.96734339]
[1768731365940,1.09984037,3322.8,3321.6,0.96734339]
[1768731366139,1.03859038,3322.7,3321.6,0.96734339]
[1768731366340,1.03859038,3322.6,3321.6,0.96734339]
[1768731366546,1.09984037,3322.8,3321.6,0.96734339]
[1768731366746,1.03859603,3322.7,3321.6,0.96734339]
[1768731367049,1.03859603,3322.6,3321.6,0.96734339]
[1768731367239,1.09984037,3322.8,3321.3,0.15059]
[1768731367538,1.03860078,3322.7,3321.6,0.96734339]
[1768731367833,1.03860078,3322.6,3321.6,0.96734339]
[1768731368036,1.09984037,3322.8,3321.6,0.96734339]
[1768731368237,1.03860867,3322.7,3321.6,0.96734339]
[1768731368438,1.03860867,3322.6,3321.6,0.96734339]
[1768731368647,1.09984037,3322.8,3321.6,0.96734339]
[1768731368849,1.03860932,3322.7,3321.6,0.96734339]
[1768731369047,1.03860932,3322.6,3321.6,0.96734339]
[1768731369348,1.09984037,3322.8,3321.6,0.96734339]
[1768731369542,1.03861442,3322.7,3321.6,0.96734339]
[1768731369741,1.03861442,3322.6,3321.6,0.96734339]
[1768731369943,1.09984037,3322.8,3321.6,0.96734339]
[1768731370243,1.03901436,3322.7,3321.6,0.96734339]
[1768731370546,1.03901436,3322.6,3321.6,0.96734339]
[1768731370742,1.09984037,3322.8,3321.6,0.96734339]
[1768731370946,1.03903109,3322.7,3321.6,0.96734339]
[1768731371149,1.03903109,3322.6,3321.6,0.96734339]
[1768731371345,1.09984037,3322.8,3321.6,0.96734339]
[1768731371545,1.03902997,3322.7,3321.6,0.96734339]
[1768731371746,1.03902997,3322.6,3321.6,0.96734339]
[1768731371945,1.09984037,3322.8,3321.6,0.96734339]
[1768731372145,1.03902997,3322.7,3321.6,0.96734339]
[1768731372345,1.03902997,3322.6,3321.6,0.96734339]
[1768731372545,1.09984037,3322.8,3321.6,0.96734339]
[1768731372850,1.0390298,3322.7,3321.6,0.96734339]
[1768731373048,1.0390298,3322.6,3321.6,0.96734339]
[1768731373246,1.09984037,3322.8,3321.6,0.96734339]
[1768731373445,1.03914367,3322.7,3321.6,0.96734339]
[1768731373745,1.03914367,3322.6,3321.6,0.96734339]
[1768731373942,1.09984037,3322.8,3321.6,0.96734339]
[1768731374148,1.03914158,3322.7,3321.6,0.96734339]
[1768731374452,1.03914158,3322.6,3321.6,0.96734339]
[1768731374650,1.09984037,3322.8,3321.6,0.96734339]
[1768731374855,1.03919804,3322.7,3321.6,0.96734339]
[1768731375047,1.03919804,3322.6,3321.6,0.96734339]
[1768731375248,1.09984037,3322.8,3321.6,0.96734339]
[1768731375546,1.03921209,3322.7,3321.6,0.96734339]
[1768731375744,1.03921209,3322.6,3321.6,0.96734339]
[1768731375940,1.09984037,3322.8,3321.6,0.96734339]
[1768731376141,1.03928122,3322.7,3321.6,0.96734339]
[1768731376345,1.03928122,3322.6,3321.6,0.96734339]
[1768731376548,1.09984037,3322.8,3321.6,0.96734339]
[1768731376741,1.0392951,3322.7,3321.6,0.96734339]
[1768731376940,1.0392951,3322.6,3321.6,0.96734339]
[1768731377148,1.09984037,3322.8,3321.6,0.96734339]
[1768731377349,1.03929882,3322.7,3321.6,0.96734339]
[1768731377649,1.03929882,3322.6,3321.6,0.96734339]
[1768731377856,1.09984037,3322.8,3321.5,0.96734339]
[1768731378156,1.03929959,3322.7,3321.5,0.96734339]
[1768731378350,1.03929959,3322.6,3321.5,0.96734339]
[1768731378549,1.09984037,3322.8,3321.5,0.96734339]
[1768731378753,1.03932989,3322.7,3321.5,0.96734339]
[1768731378954,1.03932989,3322.6,3321.5,0.96734339]
[1768731379153,1.09984037,3322.8,3321.5,0.96734339]
[1768731379355,1.03934046,3322.7,3321.5,0.96734339]
[1768731379555,1.03934046,3322.6,3321.5,0.96734339]
[1768731379750,1.09984037,3322.8,3321.5,0.96734339]
[1768731379950,1.03934254,3322.7,3321.5,0.96734339]
[1768731380149,1.03934254,3322.6,3321.5,0.96734339]
[1768731380356,1.09984037,3322.8,3321.5,0.96734339]
[1768731380553,1.03934123,3322.7,3321.5,0.96734339]
[1768731380750,1.03934123,3322.6,3321.5,0.96734339]
[1768731380952,1.09984037,3322.8,3321.5,0.96734339]
[1768731381151,1.03934066,3322.7,3321.5,0.96734339]
[1768731381352,1.03934066,3322.6,3321.5,0.96734339]
[1768731381556,1.09984037,3322.8,3321.5,0.96734339]
[1768731381754,1.03938572,3322.7,3321.5,0.96734339]
[1768731382052,1.03938572,3322.6,3321.5,0.96734339]
[1768731382250,1.09984037,3322.8,3321.5,0.96734339]
[1768731382459,1.03938512,3322.7,3321.5,0.96734339]
[1768731382658,1.03938512,3322.6,3321.5,0.96734339]
[1768731382863,1.09984037,3322.8,3321.5,0.96734339]
[1768731383165,1.03938622,3322.7,3321.5,0.96734339]
[1768731383348,1.03938622,3322.6,3321.5,0.96734339]
[1768731383555,1.09984037,3322.8,3321.5,0.96734339]
[1768731383755,1.03938828,3322.7,3321.5,0.96734339]
[1768731383956,1.03938828,3322.6,3321.5,0.96734339]
[1768731384156,1.09984037,3322.8,3321.5,0.96734339]
[1768731384367,1.03939034,3322.7,3321.5,0.96734339]